Cogmind - Beta 16 --- EXPLORER MODE // 2025.11.14 @ 10:00:31 Player: K.K.Y. Result: Destroyed by Piercing Trap Performance ------------- Evolutions (0) 0 Regions Visited (2) 400 Robots Destroyed (39) 195 Value Destroyed (1180) 1180 Prototype IDs (12) 240 Alien Tech Used (0) 0 Bonus (0) 0 TOTAL SCORE: 2015 Bonus ------- None Cogmind --------- Core Integrity 0/250 Matter 300/300 Energy 259/265 System Corruption 0% Temperature Cool (3) Movement Treading (160) Location -10/Subcaves Parts ------- > --- POWER (1) -------- Improved Ion Engine > --- PROPULSION (3) --- Light Treads Spiked Treads Spiked Treads > --- UTILITY (2) ------ High-capacity Storage Unit Machine Analyzer > --- WEAPON (2) ------- Barrage Gun Ripper > --- INVENTORY (20) --- Subdweller Power Source Makeshift Power Source Subdweller Monowheel Subdweller Monowheel Structural Scanner Makeshift Light Armor Plating Scrap Shield Recalibrator Cobbler Unit Powered Cannon Battle Cannon Multitool Ripper Ripper Peak State ------------ > --- POWER ------------ Improved Ion Engine > --- PROPULSION ------- Light Treads Spiked Treads Spiked Treads > --- UTILITY ---------- High-capacity Storage Unit Machine Analyzer > --- WEAPON ----------- Barrage Gun Ripper > --- INVENTORY -------- Makeshift Power Source Subdweller Monowheel Subdweller Monowheel Structural Scanner Makeshift Light Armor Plating Scrap Shield Recalibrator Cobbler Unit Powered Cannon Battle Cannon Multitool Ripper Ripper [Rating: 23] Favorites ----------- Power Improved Ion Engine Engine Improved Ion Engine Propulsion Light Treads Treads Light Treads Utility Machine Analyzer Device Structural Scanner Storage High-capacity Storage Unit Processor Machine Analyzer Protection Light Armor Plating Weapon Light Assault Rifle Ballistic Gun Light Assault Rifle Ballistic Cannon Battle Cannon Special Weapon Multitool Slashing Weapon Ripper Build | -11 -10 -10 ------- Run | Yrd Mat Sub Slots Evolved 1 | . 1 . Power . | . . . Propulsion 1 | . 1 . Utility . | . . . Weapon . | . . . Parts Attached 29 | 6 6 17 Power 4 | 1 1 2 Engine 4 | 1 1 2 Core . | . . . Reactor . | . . . Propulsion 10 | 2 2 6 Treads 10 | 2 2 6 Leg . | . . . Wheel . | . . . Hover . | . . . Flight . | . . . Utility 6 | 2 2 2 Device 1 | 1 . . Storage 2 | 1 . 1 Processor 2 | . 1 1 Hackware . | . . . Protection 1 | . 1 . Artifact . | . . . Weapon 9 | 1 1 7 Energy Gun . | . . . Energy Cannon . | . . . Ballistic Gun 3 | 1 1 1 Ballistic Cannon 2 | . . 2 Launcher . | . . . Special Weapon 3 | . . 3 Impact Weapon . | . . . Slashing Weapon 1 | . . 1 Piercing Weapon . | . . . Special Melee Weapon . | . . . Unidentified Prototypes . | . . . Parts Lost 11 | . 1 10 Power 3 | . 1 2 Propulsion 5 | . . 5 Utility . | . . . Weapon 3 | . . 3 Highest Loss Streak 2 | . 1 2 To Critical Strikes . | . . . Average Backups 9 | 2 4 10 Power 1 | . . 1 Propulsion . | . . 1 Utility 4 | . 3 4 Weapon 1 | 1 . 2 Tool/Special . | . . . Unused Backups 17 | . 1 16 Power 3 | . 1 2 Propulsion 2 | . . 2 Utility 6 | . . 6 Weapon 4 | . . 4 Tool/Special 2 | . . 2 Average Slot Usage (%) 89 | . 94 88 Engine 11 | . 10 11 Treads 30 | . 36 28 Storage 12 | . 12 12 Processor 11 | . 8 11 Ballistic Gun 10 | . 21 7 Ballistic Cannon 4 | . . 5 Special Weapon 2 | . . 3 Slashing Weapon 3 | . . 4 Peak Build Rating 23 | 6 9 23 Average Rating 14 | 3 7 17 On Entrance 4 | . 5 9 Avg Prop Armor Cover (%) . | . . . Naked Turns . | . . . Heaviest Build 53 | 16 20 53 Greatest Support 60 | 40 60 60 Greatest Overweight (x) 2 | . . 2 Average Overweight (x) . | . . . Largest Inventory Capacity 20 | 10 10 20 Average Capacity 15 | 8 10 16 Most Carried 17 | 5 8 17 Average Carried 10 | 2 4 13 Final Capacity 20 | 10 10 20 Final Carried 17 | 3 7 17 Class Distribution -------------------- 93% | Hacker-Mutant 6% | Scavenger-Mutant Dominant Class ---------------- Hacker-Mutant | -10/Materials Hacker-Mutant | -10/Subcaves Resources | -11 -10 -10 ----------- Run | Yrd Mat Sub Matter Collected 1521 | 211 275 1035 Remotely . | . . . Salvage Created 1083 | . 661 422 Parts 78 | . 50 28 Haulers Intercepted 2 | . 2 . Recyclers Shooed . | . . . Parts Field Recycled . | . . . Retrieved Matter . | . . . Parts Self-Destructed . | . . . Prevented . | . . . Parts Restored . | . . . Kills | -11 -10 -10 ------- Run | Yrd Mat Sub Combat Hostiles Destroyed 31 | . 13 18 Guns 17 | . 13 4 Cannons 14 | . . 14 Classes Destroyed 9 | . 6 3 Builder 2 | . 2 . Hauler 2 | . 2 . Mechanic 1 | . 1 . Watcher 3 | . 3 . Swarmer 4 | . 4 . Grunt 9 | . 9 . Artisan 1 | . . 1 Cobbler 1 | . . 1 Subdweller 18 | . . 18 Best Kill Streak 2 | . 2 2 Combat Bots Only 2 | . 2 2 Max Kills in Single Turn 1 | . 1 1 Gunslinging . | . . . Exploded . | . . . Melee . | . . . Uniques/NPCs Destroyed . | . . . Combat | -11 -10 -10 -------- Run | Yrd Mat Sub Hostile Shots Fired 215 | . 83 132 Missed 58 | . 23 35 Hits 157 | . 60 97 Projectile 157 | . 60 97 Critical Strikes 2 | . . 2 Damage Taken 1856 | . 450 1406 Core 261 | . 50 211 Absorbed by Shields . | . . . Ignored by Resistances 1085 | . 286 799 Core Remaining (%) 100 | 100 . . Volleys Fired 258 | . 72 186 Largest 2 | . 2 2 Hottest 133 | . 40 133 Shots Fired 387 | . 144 243 Gun 215 | . 144 71 Cannon 137 | . . 137 Launcher . | . . . Special 35 | . . 35 Kinetic 352 | . 144 208 Thermal 35 | . . 35 Explosive . | . . . Electromagnetic . | . . . Robot Hit Streak 47 | . 21 47 Robot Miss Streak 2 | . 2 2 Penetration Max . | . . . Secondary Targets 2 | . 2 . Max Gunslinging Chain 1 | . 1 . Shots Hit Robots 264 | . 118 146 Core Hits 86 | . 47 39 Critical Kills . | . . . Critical Parts Destroyed 1 | . 1 . Critical Strikes 8 | . 1 7 Destroy 1 | . 1 . Blast 7 | . . 7 Melee Attacks 38 | . . 38 Impact . | . . . Slashing 38 | . . 38 Piercing . | . . . Sneak Attacks . | . . . Combat Hostiles . | . . . Follow-up Attacks . | . . . Damage Inflicted 3339 | . 947 2392 Guns 1269 | . 941 328 Cannons 1900 | . . 1900 Explosions . | . . . Melee . | . . . Ramming 6 | . 6 . Kinetic 3169 | . 941 2228 Thermal 164 | . . 164 Explosive . | . . . Electromagnetic . | . . . Impact . | . . . Slashing . | . . . Piercing . | . . . Highest Corruption . | . . . Average Corruption . | . . . Corruption Purged . | . . . Corruption Blocked . | . . . Overload Shots . | . . . Overflow Damage . | . . . Projectiles . | . . . Explosions . | . . . Melee . | . . . Knockbacks 19 | . 1 18 Impact 1 | . 1 . Kinetic 18 | . . 18 Secondary . | . . . Self-Inflicted Damage . | . . . Shots . | . . . Rammed 1 | . 1 . Targets Rammed 1 | . 1 . Kicked . | . . . Crushed . | . . . Highest Temperature 51 | . 51 . Average Temperature 13 | . 13 . Received Heat Transfer 681 | . 360 321 Siege Activations . | . . . Martial Activations . | . . . Shielding Activations . | . . . Robots Disrupted . | . . . Combat Hostiles . | . . . Robots Corrupted . | . . . Combat Hostiles . | . . . Parts Fried . | . . . Impact Corruptions . | . . . Robots Melted . | . . . Combat Hostiles . | . . . Parts Melted . | . . . Heat Transferred 375 | . . 375 Parts Sabotaged . | . . . Parts Stolen . | . . . Parts Stripped . | . . . Power Chain Reactions . | . . . Alert | -11 -10 -10 ------- Run | Yrd Mat Sub Maximum Alert Level . | . . . Low Security (%) 100 | 100 100 . Level 1 . | . . . Level 2 . | . . . Level 3 . | . . . Level 4 . | . . . Level 5 . | . . . High Security . | . . . Max Security . | . . . Peak Influence 85 | . 85 . Initial . | . . . Average 6 | . 6 . Influence Increases 385 | . 385 . Destroy 0b10 Robot/C 260 | . 260 . Destroy 0b10 Robot/NC 40 | . 40 . Destroy Leader 70 | . 70 . Lose Combat Pursuer 15 | . 15 . Influence Decreases 385 | . 385 . Time Decay 385 | . 385 . Squads Dispatched 1 | . 1 . Investigation 1 | . 1 . Extermination . | . . . Reinforcement . | . . . Assault . | . . . Garrison . | . . . Intercept . | . . . Searches Triggered . | . . . Construction Impeded . | . . . Haulers Reinforced . | . . . Active Scanning Responses . | . . . Cargo Convoy Interrupts . | . . . Stealth | -11 -10 -10 --------- Run | Yrd Mat Sub Distress Signals 1 | . 1 . Communications Jammed . | . . . Distress Signals . | . . . Times Spotted 47 | . 24 23 Peak Tracking Total 4 | . 4 4 Tactical Retreats 2 | . 1 1 Traps | -11 -10 -10 ------- Run | Yrd Mat Sub Traps Triggered 5 | . 2 3 Indirectly . | . . . Trap Hack Attempts . | . . . Triggered . | . . . Disarmed . | . . . Reprogrammed . | . . . Reused . | . . . Traps Extracted . | . . . Installed . | . . . Triggered . | . . . Machines | -11 -10 -10 ---------- Run | Yrd Mat Sub Machines Disabled . | . . . Max in Single Turn . | . . . Machines Repaired . | . . . Machines Dismantled . | . . . Machines Sabotaged . | . . . Overloaded Fab Kills . | . . . Hacking | -11 -10 -10 --------- Run | Yrd Mat Sub Machines Accessed 5 | . 3 2 Terminals 1 | . 1 . Fabricators . | . . . Repair Stations . | . . . Recycling Units 2 | . 2 . Scanalyzers . | . . . Garrison Access . | . . . Total Hacks 13 | . 8 5 Successful 10 | . 5 5 Failed 3 | . 3 . Catastrophic . | . . . Database Lockouts . | . . . Manual . | . . . Terminals 3 | . 3 . Fabricators . | . . . Repair Stations . | . . . Recycling Units 5 | . 5 . Scanalyzers . | . . . Garrison Access . | . . . Terminal Hacks 6 | . 1 5 Record 4 | . . 4 Hauler Manifests 1 | . 1 . Proto ID Catalog 1 | . . 1 Fabricator Hacks . | . . . Repair Station Hacks . | . . . Recycling Unit Hacks 4 | . 4 . Retrieve Components 4 | . 4 . Scanalyzer . | . . . Garrison Access Hacks . | . . . Unauthorized Hacks . | . . . Terminals . | . . . Fabricators . | . . . Repair Stations . | . . . Recycling Units . | . . . Scanalyzers . | . . . Garrison Access . | . . . Data Cores Recovered . | . . . Used . | . . . Hacking Detections 2 | . 2 . Full Trace Events 1 | . 1 . Feedback Events . | . . . Feedback Blocked . | . . . Robot Schematics Acquired . | . . . Robots Built . | . . . Authchips . | . . . Time . | . . . Total Robot Build Rating . | . . . Part Schematics Acquired . | . . . Parts Built . | . . . Authchips . | . . . Time . | . . . Total Part Build Rating . | . . . Part Studies Acquired . | . . . Parts Repaired . | . . . Time . | . . . Parts Recycled . | . . . Recycled Matter . | . . . Retrieved Matter . | . . . Retrieved Components 24 | . 24 . Parts Scanalyzed . | . . . Part Schematics Acquired . | . . . Parts Damaged . | . . . Bothacking | -11 -10 -10 ------------ Run | Yrd Mat Sub Used RIF Installer . | . . . Robots Hacked . | . . . Non-combat . | . . . Combat . | . . . Robot Hacks Applied . | . . . Relay Couplers Released . | . . . Fabnet Peak Effective % . | . . . Robots Rewired . | . . . Allies Hacked . | . . . Hacks Repelled . | . . . Allies | -11 -10 -10 -------- Run | Yrd Mat Sub Total Allies . | . . . Largest Group . | . . . Highest-Rated Group . | . . . Highest-Rated Ally . | . . . Total Orders . | . . . Ally Attacks . | . . . Total Damage . | . . . Kills . | . . . Allies Corrupted . | . . . Allies Melted . | . . . Intel | -11 -10 -10 ------- Run | Yrd Mat Sub Active Infowar (turns) 8797 | 52 1842 6903 Structural 350 | 52 298 . T.N.C. 1552 | . 1544 8 Machine Analysis 6895 | . . 6895 Robot Analysis Total . | . . . Derelict Logs Recovered 3 | . . 3 Drone Launches . | . . . Drone Recoveries . | . . . Exploration | -11 -10 -10 ------------- Run | Yrd Mat Sub Turns Passed 9148 | 69 2165 6914 Spaces Moved 4033 | 45 1093 2895 Core 15 | 15 . . Treads 4018 | 30 1093 2895 Legs . | . . . Wheels . | . . . Hover . | . . . Flight . | . . . Fastest Speed 50 | 50 160 160 Average Speed 192 | 123 160 205 Slowest Speed 360 | 160 160 360 Overloaded Moves . | . . . Propulsion Burnouts . | . . . Robots Hopped . | . . . Potential Cave-ins . | . . . Cave-ins Triggered . | . . . Exploration Rate (%) 65 | 5 95 95 Regions Visited 2 Branch Regions 1 Pre-discovered Areas . | . . . Known Exits Taken 2 | 1 1 . Unknown Exits Taken . | . . . Scrap Searched 15 | . . 15 Spaces Dug 12 | . . 12 Terrain Destroyed 14 | . . 14 Melee 12 | . . 12 Projectile 2 | . . 2 AOE . | . . . Terrain Rammed . | . . . Walls Destroyed . | . . . Machines Disabled . | . . . Actions | -11 -10 -10 --------- Run | Yrd Mat Sub Total 4986 | 59 1395 3532 Wait 556 | . 203 353 Move 4031 | 44 1092 2895 Hop . | . . . Pick Up 46 | 8 13 25 Fast Attach 1 | . . 1 Attach 27 | 6 9 12 Detach 5 | 1 2 2 Swap 10 | . 1 9 Drop 13 | . 2 11 Fire 258 | . 72 186 Melee 38 | . . 38 Ram . | . . . Kick . | . . . Crush 1 | . 1 . Escape Stasis . | . . . Rewire . | . . . Trap . | . . . Miscellaneous . | . . . Route ------- -11/Scrapyard -10/Materials (discovered 5 exits: *Mat x3 / *Min / *Sub) -10/Subcaves (discovered 3 exits: *Mat x2 / *Rec) History --------- Turn | Location | Event 5 | -11/Scrapyard | Identified exit to Materials 5 | -11/Scrapyard | Discovered exit to Materials (range 16) 70 | -11/Scrapyard | Entered Materials 70 | -10/Materials | Evolved 1 slot: Propulsion x1 317 | -10/Materials | Build established: Hacker-Mutant 338 | -10/Materials | Identified exit to Materials 338 | -10/Materials | Discovered exit to Materials (range 4) 1038 | -10/Materials | Discovered exit to Materials (range 15) 1322 | -10/Materials | Discovered exit to Materials (range 12) 1351 | -10/Materials | Identified exit to Mines 1351 | -10/Materials | Discovered exit to Mines (range 13) 2219 | -10/Materials | Identified exit to Subcaves 2219 | -10/Materials | Discovered exit to Subcaves (range 11) 2235 | -10/Materials | Entered Subcaves 2236 | -10/Subcaves | Approached by a straggling Scientist 2439 | -10/Subcaves | Learned Materials emergency access door positions 2629 | -10/Subcaves | A swath of the cavern ceiling suddenly collapsed 3220 | -10/Subcaves | Identified exit to Materials 3220 | -10/Subcaves | Discovered exit to Materials (range 7) 3334 | -10/Subcaves | Core integrity fell below 50% 3667 | -10/Subcaves | Shifting Twisted Machinery released Spk. Treads 3667 | -10/Subcaves | Shifting Twisted Machinery released Scrap Shield 3809 | -10/Subcaves | Disturbed a concealed Subdweller 3816 | -10/Subcaves | Disturbed a concealed Subdweller 4068 | -10/Subcaves | Build established: Scavenger-Mutant 4216 | -10/Subcaves | Disturbed a concealed Subdweller 4483 | -10/Subcaves | Build established: Hacker-Mutant 4780 | -10/Subcaves | Shifting Twisted Machinery released Battle Cannon 4899 | -10/Subcaves | Visited Clippyterm 4907 | -10/Subcaves | Identified exit to Recycling 5099 | -10/Subcaves | Found Prototype Energy Cannon 5177 | -10/Subcaves | Learned 4 Materials zone layouts 5197 | -10/Subcaves | Learned 2 Materials zone layouts 5394 | -10/Subcaves | Core integrity fell below 20% 5469 | -10/Subcaves | A swath of the cavern ceiling suddenly collapsed 6093 | -10/Subcaves | Discovered exit to Materials (range 5) 6728 | -10/Subcaves | Visited 4L-MR0's lab 6741 | -10/Subcaves | Identified Powered Cannon 7376 | -10/Subcaves | Shifting Twisted Machinery released Spk. Treads 7880 | -10/Subcaves | Shifting Twisted Machinery released Shrapnel Trap 7906 | -10/Subcaves | Shifting Twisted Machinery released Ripper 9149 | -10/Subcaves | Destroyed by Piercing Trap Last Messages --------------- 07448_ Subatomizers dissect the Lgt. Ion Engine. 07804_ Acquired Lgt. Treads. Shrapnel Trap falls loose from the Twisted Machinery. Ripper falls loose from the Twisted Machinery. 07914_ Acquired Ripper. 07925_ Acquired Battle Cannon. 08541_ Acquired 26 matter. 08573_ Acquired 47 matter. 08577_ Acquired Lgt. Treads. 08579_ Dropped Lgt. Treads. 08583_ Acquired Sub. Power Source. 08681_ Acquired 3 matter. 08725_ Acquired 13 matter. 08963_ Acquired 22 matter. 08985_ Subatomizers dissect the Lgt. Assault Rifle. 09149_ Triggered Piercing Trap. 09149_ Spikes shoot up from the floor. 09149_ Critical hit (Impale). Map ----- +----------------------------------------------------+ | ##??# ##?## #???????????? | | ###???# #### ##???# #???????????? | | #????# ##??###### ##?#### #???????????? | | #????#### ####????????###?## #???????????? | | ###?????###???????????????# #???????????? | | ## ##??????????????????????# #???????????? | | ##?????????????????????#########???????????? | | #?????????????????????????????????????????? | | #?????????????????????????????????????????? | | #?????????????????????????????????????????? | | #?????????????????????????????????????????? | | ### ##?????????????????????????????????????????? | | ### #??????????????????????????????????????????? | | # #??????????????????????????????????????????? | | # #??????????????????????????????????????????? | | ## ###??????????????????????????????????????????? | | ## ##???????????????????????????????????????????? | | #???????????????????????????????????????????? | | ####?????????????????????????????????????????? | | #?????????????????????????????????????????? | | #?????????????????????????????????????????? | | #?????????????????????????????????????????? | | #?????????????????#####???????????????????? | | #???????????????###;;;##??????????????????? | | ## ##?????????????###^ ;##?????????????????? | | #####??????????????# @ ;;#?????????????????? | | #?????????????????## #######???????##### | | #??????????????????##^#; ^ # # ####??### # | | #???????????????????###; ^ ##?# """ | | ##?????????????????????#;# #?# """" | | ##??????????????????????#### ## # ##?#"" | | ##??????????????????????????##^ ^##???# "#?## | | ?????????????????????????????# #?????# "#??# | | ????????????????????????###?## #???###" #### | | ???##?################### ### ###### ## | | ???# ## # # ## # # # | | ????# & "" " | | ????# ## ##### # """"""" "# | | ????# #####???######## ## ""## "## | | ???## ##???????????## #### """" #####? | | ##?# #???????????## #??# """ "#???## | | ### ##??????????# #??# #### "" ""#??## | | ### #??????????# #??# ##??#### " #??# | | = ##?????????## ##??####?###### ##?### | | [< ##??????????# ##????????# #???# | | = ##???????????# ##?????????# #???# | | ## ##????????????#####??????????## ### ##???? | | #####?????????????????????????????####?######????? | | ?????????????????????????????????????????????????? | | ?????????????????????????????????????????????????? | +----------------------------------------------------+ Best States ------------- Heat Dissipation 25 Energy Generation 12 Energy Capacity 265 Matter Stores 300 Matter Capacity 300 Sight Range 16 Terrain Scan Density 10 Armor Coverage 150 Resistance: KI 35 Resistance: TH 35 Resistance: EX 35 Resistance: EM 35 Resistance: I 35 Resistance: S 35 Resistance: P 35 Evasion (%) 50 Recoil Reduction 3 Offensive Hacking 20 Item Schematics ----------------- None Robot Schematics ------------------ None Fabricated ------------ Nothing Repaired ---------- Nothing Studied --------- None Alien Tech Used ----------------- None Achievements -------------- None Challenges ------------ None Game ------ Seed GaussDecoyMapper Manual? 0 Play Time 00:33:56 Cumulative 89.8 hours Start 2025.11.14 @ 09:27:28 End 2025.11.14 @ 10:00:31 Sessions 1 Manual Loads 0 Difficulty Explorer Special Mode None Game No. 96 Rogue 0 Adventurer 0 Explorer 96 Win Type - Total 0 Types 0/0/0/0/0/0/0/0/0/0 Lore% 58 Gallery% 56 Achievement% 44 Wizard Run 0 Options --------- Layout 1 ASCII 0 Keyboard 0 Movement Mouse Keybinds 0 Fullscreen 1 Font 24/Smallcaps Map View 50x35 Zoom Use 0% Tactical HUD 1 Map Filters NONE Filters NONE Steam 1 RUN: 48f23ae2-d06f-49cc-9524-0c21803e10d7